[Event "Ebbe Cup 48"]
[Site "Goteborgs Schackcentrum, Vegatan 20, Gothenburg, Sweden"]
[Date "2025.02.15"]
[Round "3.10"]
[White "Dahlin, Emil"]
[Black "Hernebring, Marten"]
[Result "0-1"]
[TimeControl "90 minutes + 30 seconds per move from move one"]
[WhiteFideId "1771035"]
[BlackFideId "1776894"]
[WhiteElo "1698"]
[BlackElo "1663"]

1. e4 {[%clk 01:30:58]} {[%emt 00:00:02]} e5 {[%clk 01:30:55]} {[%emt
00:00:05]} 2. Nf3 {[%clk 01:31:24]} {[%emt 00:00:04]} Nc6 {[%clk 01:31:19]}
{[%emt 00:00:07]} 3. Bc4 {[%clk 01:31:45]} {[%emt 00:00:09]} Nf6 {[%clk
01:31:39]} {[%emt 00:00:09]} 4. d3 {[%clk 01:32:01]} {[%emt 00:00:15]} Bc5
{[%clk 01:31:44]} {[%emt 00:00:24]} 5. c3 {[%clk 01:32:22]} {[%emt 00:00:09]}
a6 {[%clk 01:31:54]} {[%emt 00:00:20]} 6. b4 {[%clk 01:30:51]} {[%emt
00:02:00]} Ba7 {[%clk 01:32:07]} {[%emt 00:00:16]} 7. O-O {[%clk 01:29:36]}
{[%emt 00:01:47]} d6 {[%clk 01:32:08]} {[%emt 00:00:28]} 8. Nbd2 {[%clk
01:29:37]} {[%emt 00:00:30]} O-O {[%clk 01:31:23]} {[%emt 00:01:14]} 9. a4
{[%clk 01:28:26]} {[%emt 00:01:42]} Ne7 {[%clk 01:28:08]} {[%emt 00:03:45]} 10.
Ba3 {[%clk 01:17:30]} {[%emt 00:11:26]} h6 {[%clk 01:24:18]} {[%emt 00:04:19]}
11. Qb3 {[%clk 01:11:01]} {[%emt 00:07:00]} c6 {[%clk 01:17:34]} {[%emt
00:07:14]} 12. d4 {[%clk 01:08:53]} {[%emt 00:02:38]} d5 {[%clk 01:16:44]}
{[%emt 00:01:19]} 13. exd5 {[%clk 01:08:39]} {[%emt 00:00:44]} cxd5 {[%clk
01:16:03]} {[%emt 00:01:11]} 14. Be2 {[%clk 01:06:50]} {[%emt 00:02:19]} exd4
{[%clk 01:11:58]} {[%emt 00:04:36]} 15. Nxd4 {[%clk 01:03:24]} {[%emt
00:03:56]} Re8 {[%clk 01:08:12]} {[%emt 00:04:16]} 16. N2f3 {[%clk 00:59:43]}
{[%emt 00:04:11]} Nf5 {[%clk 01:02:57]} {[%emt 00:05:44]} 17. Rfe1 {[%clk
00:54:50]} {[%emt 00:05:24]} Be6 {[%clk 00:57:06]} {[%emt 00:06:20]} 18. Bd3
{[%clk 00:47:01]} {[%emt 00:08:17]} Nd6 {[%clk 00:52:40]} {[%emt 00:04:58]} 19.
b5 {[%clk 00:39:39]} {[%emt 00:07:52]} axb5 {[%clk 00:45:38]} {[%emt 00:07:31]}
20. Bxb5 {[%clk 00:36:22]} {[%emt 00:03:48]} Nxb5 {[%clk 00:44:52]} {[%emt
00:01:15]} 21. axb5 {[%clk 00:30:18]} {[%emt 00:06:35]} Bb6 {[%clk 00:44:40]}
{[%emt 00:00:42]} 22. Nxe6 {[%clk 00:24:48]} {[%emt 00:05:59]} fxe6 {[%clk
00:41:58]} {[%emt 00:03:12]} 23. Rad1 {[%clk 00:19:12]} {[%emt 00:06:06]} Qc7
{[%clk 00:39:38]} {[%emt 00:02:51]} 24. Nd4 {[%clk 00:13:30]} {[%emt 00:06:12]}
Ne4 {[%clk 00:38:45]} {[%emt 00:01:22]} 25. Bb4 {[%clk 00:06:58]} {[%emt
00:07:03]} Rad8 {[%clk 00:33:26]} {[%emt 00:05:48]} 26. Rf1 {[%clk 00:03:16]}
{[%emt 00:04:13]} Kh8 {[%clk 00:30:33]} {[%emt 00:03:22]} 27. Nf3 {[%clk
00:01:14]} {[%emt 00:02:32]} Qf4 {[%clk 00:16:59]} {[%emt 00:14:05]} 28. c4
{[%clk 00:00:34]} {[%emt 00:01:10]} dxc4 {[%clk 00:17:10]} {[%emt 00:00:18]} 29.
Qxc4 {[%clk 00:00:55]} {[%emt 00:00:10]} Rxd1 {[%clk 00:17:30]} {[%emt
00:00:09]} 30. Bd2 {[%clk 00:00:42]} {[%emt 00:00:44]} Rxf1+ {[%clk 00:16:10]}
{[%emt 00:01:50]} 31. Kxf1 {[%clk 00:00:33]} {[%emt 00:00:38]} Nxd2+ {[%clk
00:16:23]} {[%emt 00:00:17]} 32. Nxd2 {[%clk 00:00:50]} {[%emt 00:00:13]} Qxf2#
{[%clk 00:16:46]} {[%emt 00:00:07]} 0-1

[Event "Ebbe Cup 48"]
[Site "Goteborgs Schackcentrum, Vegatan 20, Gothenburg, Sweden"]
[Date "2025.02.15"]
[Round "3.11"]
[White "Gallon, John"]
[Black "Pettersson, Lennart"]
[Result "0-1"]
[TimeControl "90 minutes + 30 seconds per move from move one"]
[WhiteFideId "1783661"]
[BlackFideId "1791419"]
[WhiteElo "1651"]
[BlackElo "1691"]

1. e4 {[%clk 01:30:14]} {[%emt 00:00:46]} d5 {[%clk 01:30:28]} {[%emt
00:00:31]} 2. exd5 {[%clk 01:30:32]} {[%emt 00:00:12]} Nf6 {[%clk 01:30:27]}
{[%emt 00:00:31]} 3. d4 {[%emt 00:01:08]} Nxd5 {[%clk 01:30:05]} {[%emt
00:00:31]} 4. c4 {[%clk 01:29:51]} {[%emt 00:00:55]} Nf6 {[%clk 01:24:05]}
{[%emt 00:06:30]} 5. Be2 {[%clk 01:17:54]} {[%emt 00:12:25]} Bf5 {[%clk
01:23:51]} {[%emt 00:00:44]} 6. Nf3 {[%clk 01:17:19]} {[%emt 00:01:06]} e6
{[%clk 01:22:22]} {[%emt 00:01:59]} 7. Bf4 {[%clk 01:13:20]} {[%emt 00:04:29]}
Bb4+ {[%clk 01:21:44]} {[%emt 00:01:08]} 8. Bd2 {[%clk 01:03:00]} {[%emt
00:10:51]} Bxd2+ {[%clk 01:21:25]} {[%emt 00:00:47]} 9. Nbxd2 {[%clk 01:02:59]}
{[%emt 00:00:32]} O-O {[%clk 01:21:33]} {[%emt 00:00:23]} 10. O-O {[%clk
01:02:43]} {[%emt 00:00:46]} c6 {[%clk 01:18:59]} {[%emt 00:03:02]} 11. Nb3
{[%clk 01:00:01]} {[%emt 00:03:14]} Nbd7 {[%clk 01:16:37]} {[%emt 00:02:51]} 12.
Nh4 {[%clk 00:48:24]} {[%emt 00:12:07]} Qe7 {[%clk 01:12:20]} {[%emt 00:04:47]}
13. Nxf5 {[%clk 00:42:56]} {[%emt 00:05:59]} exf5 {[%clk 01:12:21]} {[%emt
00:00:24]} 14. Bf3 {[%clk 00:43:04]} {[%emt 00:00:24]} Ne4 {[%clk 01:11:47]}
{[%emt 00:01:06]} 15. Qc2 {[%clk 00:33:20]} {[%emt 00:10:13]} Ndf6 {[%clk
01:11:41]} {[%emt 00:00:36]} 16. Rfe1 {[%clk 00:26:07]} {[%emt 00:07:43]} Rfe8
{[%clk 01:11:08]} {[%emt 00:01:04]} 17. Nc5 {[%clk 00:19:01]} {[%emt 00:07:35]}
g6 {[%clk 01:04:16]} {[%emt 00:07:21]} 18. Bxe4 {[%clk 00:12:39]} {[%emt
00:06:54]} fxe4 {[%clk 01:04:05]} {[%emt 00:00:41]} 19. Nxe4 {[%clk 00:09:18]}
{[%emt 00:03:52]} Nxe4 {[%clk 01:04:12]} {[%emt 00:00:22]} 20. f3 {[%clk
00:09:25]} {[%emt 00:00:24]} Qb4 {[%emt 00:03:29]} 21. Rxe4 {[%clk 00:07:52]}
{[%emt 00:00:48]} b5 {[%clk 00:59:05]} {[%emt 00:03:52]} 22. c5 {[%clk
00:03:00]} {[%emt 00:05:24]} Rxe4 {[%clk 00:59:07]} {[%emt 00:00:25]} 23. Qxe4
{[%clk 00:03:22]} {[%emt 00:00:11]} Qxb2 {[%clk 00:58:51]} {[%emt 00:00:42]} 24.
Re1 {[%clk 00:02:42]} {[%emt 00:01:13]} Qd2 {[%clk 00:58:19]} {[%emt 00:00:52]}
25. Re2 {[%clk 00:02:07]} {[%emt 00:01:13]} Qd1+ {[%clk 00:53:48]} {[%emt
00:05:03]} 26. Kf2 {[%clk 00:02:33]} {[%emt 00:00:04]} Rd8 {[%clk 00:52:14]}
{[%emt 00:01:59]} 27. Qxc6 {[%clk 00:00:32]} {[%emt 00:02:36]} Qxd4+ {[%clk
00:52:11]} {[%emt 00:00:24]} 28. Kg3 {[%clk 00:00:50]} {[%emt 00:00:21]} Rd5
{[%clk 00:50:44]} {[%emt 00:01:57]} 29. Qe8+ {[%clk 00:00:00]} {[%emt
00:02:33]} Kg7 {[%clk 00:51:02]} {[%emt 00:01:37]} 30. Qe4 {[%clk 00:00:00]}
{[%emt 00:02:32]} 0-1

[Event "Ebbe Cup 48"]
[Site "Goteborgs Schackcentrum, Vegatan 20, Gothenburg, Sweden"]
[Date "2025.02.16"]
[Round "4.1"]
[White "Christoforidis, Nicolas"]
[Black "Andren, Patrik"]
[Result "1/2-1/2"]
[TimeControl "90 minutes + 30 seconds per move from move one"]
[WhiteFideId "1789180"]
[BlackFideId "1767135"]
[WhiteElo "1886"]
[BlackElo "1959"]

1. d4 {[%clk 01:30:54]} {[%emt 00:00:05]} Nf6 {[%clk 01:30:50]} {[%emt
00:00:10]} 2. Bf4 {[%clk 01:29:35]} {[%emt 00:01:48]} g6 {[%clk 01:31:08]}
{[%emt 00:00:13]} 3. Nf3 {[%clk 01:29:10]} {[%emt 00:00:56]} Bg7 {[%clk
01:30:53]} {[%emt 00:00:44]} 4. Nc3 {[%clk 01:25:25]} {[%emt 00:04:15]} c5
{[%clk 01:28:56]} {[%emt 00:02:27]} 5. e3 {[%clk 01:18:26]} {[%emt 00:07:29]}
O-O {[%clk 01:25:20]} {[%emt 00:04:06]} 6. Be2 {[%clk 01:14:08]} {[%emt
00:04:48]} Qb6 {[%clk 01:22:37]} {[%emt 00:03:53]} 7. O-O {[%clk 01:09:05]}
{[%emt 00:05:33]} cxd4 {[%clk 01:21:07]} {[%emt 00:02:01]} 8. exd4 {[%clk
01:07:37]} {[%emt 00:01:58]} Qxb2 {[%clk 01:19:09]} {[%emt 00:02:28]} 9. Qd2
{[%clk 01:06:12]} {[%emt 00:01:54]} Qb6 {[%clk 01:16:43]} {[%emt 00:02:56]} 10.
Rab1 {[%clk 01:02:15]} {[%emt 00:04:26]} Qd8 {[%clk 01:14:33]} {[%emt
00:02:41]} 11. Rfe1 {[%clk 00:53:09]} {[%emt 00:09:36]} d6 {[%clk 01:07:56]}
{[%emt 00:07:08]} 12. Bd3 {[%clk 00:45:49]} {[%emt 00:07:49]} Nbd7 {[%clk
01:02:31]} {[%emt 00:05:55]} 13. Ne4 {[%clk 00:43:17]} {[%emt 00:03:02]} Nb6
{[%clk 00:55:49]} {[%emt 00:07:14]} 14. c3 {[%clk 00:37:06]} {[%emt 00:06:40]}
Be6 {[%clk 00:39:40]} {[%emt 00:16:39]} 15. Neg5 {[%clk 00:29:27]} {[%emt
00:08:08]} Bd5 {[%clk 00:30:12]} {[%emt 00:09:58]} 16. Qe2 {[%clk 00:24:44]}
{[%emt 00:05:13]} h6 {[%clk 00:25:20]} {[%emt 00:05:23]} 17. Ne4 {[%clk
00:21:26]} {[%emt 00:03:47]} Bxe4 {[%clk 00:22:34]} {[%emt 00:03:17]} 18. Bxe4
{[%clk 00:21:40]} {[%emt 00:00:15]} d5 {[%clk 00:22:51]} {[%emt 00:00:14]} 19.
Bd3 {[%clk 00:20:30]} {[%emt 00:01:40]} e6 {[%clk 00:21:02]} {[%emt 00:02:19]}
20. Ne5 {[%clk 00:19:21]} {[%emt 00:01:39]} Kh7 {[%clk 00:16:49]} {[%emt
00:04:42]} 21. Rec1 {[%clk 00:14:30]} {[%emt 00:05:22]} Nfd7 {[%clk 00:14:41]}
{[%emt 00:02:38]} 22. Ng4 {[%clk 00:11:03]} {[%emt 00:03:55]} Nf6 {[%clk
00:14:47]} {[%emt 00:00:25]} 23. g3 {[%clk 00:08:13]} {[%emt 00:03:20]} Nxg4
{[%clk 00:13:24]} {[%emt 00:01:54]} 24. Qxg4 {[%clk 00:08:38]} {[%emt
00:00:04]} Rc8 {[%clk 00:06:03]} {[%emt 00:07:52]} 25. h4 {[%clk 00:07:51]}
{[%emt 00:01:16]} Qe8 {[%clk 00:05:42]} {[%emt 00:00:51]} 26. h5 {[%clk
00:07:03]} {[%emt 00:01:18]} Nd7 {[%clk 00:05:23]} {[%emt 00:00:49]} 27. hxg6+
{[%clk 00:07:00]} {[%emt 00:00:33]} fxg6 {[%clk 00:05:44]} {[%emt 00:00:09]} 28.
Rxb7 {[%clk 00:06:42]} {[%emt 00:00:49]} Nf6 {[%clk 00:04:43]} {[%emt
00:01:30]} 29. Qh3 {[%clk 00:05:26]} {[%emt 00:01:45]} Rf7 {[%clk 00:04:38]}
{[%emt 00:00:36]} 30. Rb3 {[%clk 00:04:19]} {[%emt 00:01:38]} Ne4 {[%clk
00:03:55]} {[%emt 00:01:13]} 31. f3 {[%clk 00:03:50]} {[%emt 00:00:58]} Rxf4
{[%clk 00:02:56]} {[%emt 00:01:29]} 32. gxf4 {[%clk 00:03:09]} {[%emt
00:01:12]} Bxd4+ {[%clk 00:03:07]} {[%emt 00:00:19]} 33. Kg2 {[%clk 00:02:11]}
{[%emt 00:01:28]} Nxc3 {[%clk 00:01:45]} {[%emt 00:01:52]} 34. Rb7+ {[%clk
00:02:07]} {[%emt 00:00:33]} Bg7 {[%clk 00:02:05]} {[%emt 00:00:10]} 35. Qh5
{[%clk 00:01:32]} {[%emt 00:01:05]} Ne2 {[%clk 00:00:59]} {[%emt 00:01:37]} 36.
Qxg6+ {[%clk 00:01:30]} {[%emt 00:00:32]} Qxg6+ {[%clk 00:00:53]} {[%emt
00:00:35]} 37. Bxg6+ {[%clk 00:01:53]} {[%emt 00:00:07]} Kxg6 {[%clk 00:01:08]}
{[%emt 00:00:16]} 38. Rxc8 {[%clk 00:02:14]} {[%emt 00:00:09]} Nxf4+ {[%clk
00:01:19]} {[%emt 00:00:18]} 39. Kf1 {[%clk 00:02:28]} {[%emt 00:00:16]} Bd4
{[%clk 00:01:00]} {[%emt 00:00:49]} 40. Rg8+ {[%clk 00:02:29]} {[%emt
00:00:28]} Kf5 {[%clk 00:01:23]} {[%emt 00:00:08]} 41. Rh7 {[%clk 00:02:45]}
{[%emt 00:00:15]} h5 {[%clk 00:01:31]} {[%emt 00:00:22]} 42. Rf7+ {[%clk
00:02:59]} {[%emt 00:00:15]} Ke5 {[%clk 00:00:54]} {[%emt 00:01:08]} 43. Rg5+
{[%clk 00:03:22]} {[%emt 00:00:06]} Kd6 {[%clk 00:01:18]} {[%emt 00:00:06]} 44.
Rxf4 {[%clk 00:03:27]} {[%emt 00:00:25]} Be3 {[%clk 00:01:42]} {[%emt
00:00:06]} 45. Ra4 {[%clk 00:03:08]} {[%emt 00:00:50]} Bxg5 {[%clk 00:01:46]}
{[%emt 00:00:25]} 46. Rxa7 {[%clk 00:03:29]} {[%emt 00:00:09]} h4 {[%clk
00:02:02]} {[%emt 00:00:15]} 47. Ke2 {[%clk 00:03:30]} {[%emt 00:00:29]} Bf4
{[%clk 00:02:17]} {[%emt 00:00:15]} 48. Rh7 {[%clk 00:03:50]} {[%emt 00:00:09]}
Bg3 {[%clk 00:02:25]} {[%emt 00:00:23]} 49. Kd3 {[%clk 00:03:44]} {[%emt
00:00:35]} Kc5 {[%clk 00:02:24]} {[%emt 00:00:31]} 50. a4 {[%clk 00:02:05]}
{[%emt 00:02:09]} Kb4 {[%clk 00:02:03]} {[%emt 00:00:52]} 51. Kd4 {[%clk
00:02:08]} {[%emt 00:00:27]} Kxa4 {[%clk 00:01:51]} {[%emt 00:00:42]} 52. Rh6
{[%clk 00:02:12]} {[%emt 00:00:23]} 1/2-1/2

[Event "Ebbe Cup 48"]
[Site "Goteborgs Schackcentrum, Vegatan 20, Gothenburg, Sweden"]
[Date "2025.02.16"]
[Round "4.2"]
[White "Madevan Vaishnavi, Yaashvan"]
[Black "Brodocz, Bartosz"]
[Result "0-1"]
[TimeControl "90 minutes + 30 seconds per move from move one"]
[WhiteFideId "1772180"]
[BlackFideId "21025894"]
[WhiteElo "1867"]
[BlackElo "1821"]

1. e4 {[%clk 01:29:31]} {[%emt 00:01:29]} c5 {[%clk 01:30:54]} {[%emt
00:00:07]} 2. c3 {[%clk 01:29:36]} {[%emt 00:00:26]} g6 {[%clk 01:30:58]}
{[%emt 00:00:25]} 3. d4 {[%clk 01:29:57]} {[%emt 00:00:09]} cxd4 {[%clk
01:31:23]} {[%emt 00:00:05]} 4. cxd4 {[%clk 01:30:21]} {[%emt 00:00:06]} d5
{[%clk 01:31:49]} {[%emt 00:00:04]} 5. e5 {[%clk 01:29:42]} {[%emt 00:01:09]}
Bg7 {[%clk 01:32:11]} {[%emt 00:00:08]} 6. Nc3 {[%clk 01:29:52]} {[%emt
00:00:21]} a6 {[%clk 01:31:47]} {[%emt 00:00:53]} 7. g3 {[%clk 01:26:53]}
{[%emt 00:03:29]} f6 {[%clk 01:31:09]} {[%emt 00:01:07]} 8. Bf4 {[%clk
01:18:36]} {[%emt 00:08:47]} Nc6 {[%clk 01:30:48]} {[%emt 00:00:52]} 9. exf6
{[%clk 01:16:59]} {[%emt 00:02:07]} Nxf6 {[%clk 01:30:58]} {[%emt 00:00:20]} 10.
Bg2 {[%clk 01:17:23]} {[%emt 00:00:05]} O-O {[%clk 01:30:59]} {[%emt 00:00:28]}
11. Nf3 {[%clk 01:17:26]} {[%emt 00:00:29]} Nh5 {[%clk 01:21:35]} {[%emt
00:09:53]} 12. Be3 {[%clk 01:11:53]} {[%emt 00:06:03]} Bg4 {[%clk 01:14:57]}
{[%emt 00:07:07]} 13. h3 {[%clk 01:08:01]} {[%emt 00:04:24]} Bxf3 {[%clk
01:14:30]} {[%emt 00:00:57]} 14. Bxf3 {[%clk 01:08:22]} {[%emt 00:00:09]} e6
{[%clk 01:14:50]} {[%emt 00:00:09]} 15. O-O {[%clk 01:03:32]} {[%emt 00:05:21]}
Nf6 {[%clk 01:10:05]} {[%emt 00:05:15]} 16. Bg2 {[%clk 01:00:51]} {[%emt
00:03:10]} Ne8 {[%clk 01:09:39]} {[%emt 00:00:55]} 17. Qg4 {[%clk 00:59:02]}
{[%emt 00:02:21]} Qf6 {[%clk 01:04:46]} {[%emt 00:05:20]} 18. Rae1 {[%clk
00:51:48]} {[%emt 00:07:43]} h5 {[%clk 00:57:35]} {[%emt 00:07:44]} 19. Qe2
{[%clk 00:49:17]} {[%emt 00:03:01]} Nd6 {[%clk 00:56:54]} {[%emt 00:01:10]} 20.
h4 {[%clk 00:46:32]} {[%emt 00:03:15]} Nf5 {[%clk 00:56:09]} {[%emt 00:01:15]}
21. Bh3 {[%clk 00:39:44]} {[%emt 00:07:18]} Nfxd4 {[%clk 00:56:03]} {[%emt
00:00:36]} 22. Bxd4 {[%clk 00:40:02]} {[%emt 00:00:12]} Nxd4 {[%clk 00:56:16]}
{[%emt 00:00:16]} 23. Bxe6+ {[%clk 00:39:51]} {[%emt 00:00:43]} Kh7 {[%clk
00:55:23]} {[%emt 00:01:20]} 24. Qe3 {[%clk 00:35:01]} {[%emt 00:05:22]} Nf3+
{[%clk 00:55:44]} {[%emt 00:00:09]} 25. Kh1 {[%clk 00:35:25]} {[%emt 00:00:06]}
Nxe1 {[%clk 00:55:54]} {[%emt 00:00:20]} 26. Qxe1 {[%clk 00:35:31]} {[%emt
00:00:24]} Rae8 {[%clk 00:56:09]} {[%emt 00:00:15]} 0-1

[Event "Ebbe Cup 48"]
[Site "Goteborgs Schackcentrum, Vegatan 20, Gothenburg, Sweden"]
[Date "2025.02.16"]
[Round "4.3"]
[White "Green, David"]
[Black "Hitcher, Oscar"]
[Result "1-0"]
[TimeControl "90 minutes + 30 seconds per move from move one"]
[WhiteFideId "1769332"]
[BlackFideId "1746901"]
[WhiteElo "1892"]
[BlackElo "1712"]

1. e4 {[%clk 01:24:25]} {[%emt 00:06:35]} e6 {[%clk 01:29:33]} {[%emt
00:01:28]} 2. Nf3 {[%clk 01:24:12]} {[%emt 00:00:42]} d5 {[%clk 01:29:28]}
{[%emt 00:00:35]} 3. Nc3 {[%clk 01:24:23]} {[%emt 00:00:18]} dxe4 {[%clk
01:29:16]} {[%emt 00:00:44]} 4. Nxe4 {[%clk 01:24:36]} {[%emt 00:00:17]} Nd7
{[%clk 01:29:11]} {[%emt 00:00:34]} 5. d4 {[%clk 01:18:43]} {[%emt 00:06:24]}
Ngf6 {[%clk 01:29:20]} {[%emt 00:00:20]} 6. Nxf6+ {[%clk 01:15:40]} {[%emt
00:03:34]} Nxf6 {[%clk 01:29:34]} {[%emt 00:00:15]} 7. Bd3 {[%clk 01:13:44]}
{[%emt 00:02:27]} Be7 {[%clk 01:29:31]} {[%emt 00:00:33]} 8. O-O {[%clk
01:13:18]} {[%emt 00:00:56]} O-O {[%clk 01:28:21]} {[%emt 00:01:39]} 9. Ne5
{[%clk 01:05:07]} {[%emt 00:08:42]} c5 {[%clk 01:26:46]} {[%emt 00:02:05]} 10.
dxc5 {[%clk 01:04:01]} {[%emt 00:01:35]} Bxc5 {[%clk 01:26:01]} {[%emt
00:01:15]} 11. Bg5 {[%clk 01:02:16]} {[%emt 00:02:15]} h6 {[%clk 01:23:42]}
{[%emt 00:02:49]} 12. Bh4 {[%clk 00:57:51]} {[%emt 00:04:56]} Be7 {[%clk
01:16:58]} {[%emt 00:07:13]} 13. Qe2 {[%clk 00:46:52]} {[%emt 00:11:30]} Nd5
{[%clk 01:12:23]} {[%emt 00:05:05]} 14. Bg3 {[%clk 00:37:16]} {[%emt 00:10:06]}
Nb4 {[%clk 01:08:25]} {[%emt 00:04:27]} 15. Bc4 {[%clk 00:34:17]} {[%emt
00:03:29]} Nc6 {[%clk 01:04:09]} {[%emt 00:04:47]} 16. Nxc6 {[%clk 00:31:05]}
{[%emt 00:03:41]} bxc6 {[%clk 01:04:21]} {[%emt 00:00:18]} 17. Rfd1 {[%clk
00:21:55]} {[%emt 00:09:42]} Qb6 {[%clk 01:04:20]} {[%emt 00:00:30]} 18. Be5
{[%clk 00:20:48]} {[%emt 00:01:37]} Bc5 {[%clk 00:58:16]} {[%emt 00:06:33]} 19.
Rd2 {[%clk 00:17:41]} {[%emt 00:03:38]} a5 {[%clk 00:57:38]} {[%emt 00:01:07]}
20. Qg4 {[%clk 00:16:25]} {[%emt 00:01:46]} g6 {[%clk 00:57:07]} {[%emt
00:01:01]} 21. Qh4 {[%clk 00:14:50]} {[%emt 00:02:05]} f6 {[%clk 00:50:49]}
{[%emt 00:06:48]} 22. Qxh6 {[%clk 00:04:23]} {[%emt 00:10:57]} fxe5 {[%clk
00:50:30]} {[%emt 00:00:49]} 23. Qxg6+ {[%clk 00:04:12]} {[%emt 00:00:41]} Kh8
{[%clk 00:50:44]} {[%emt 00:00:15]} 24. Rd3 {[%clk 00:03:25]} {[%emt 00:01:17]}
Bxf2+ {[%clk 00:49:47]} {[%emt 00:01:27]} 25. Kh1 {[%clk 00:03:37]} {[%emt
00:00:18]} Be3 {[%clk 00:44:21]} {[%emt 00:05:55]} 26. Re1 {[%clk 00:02:21]}
{[%emt 00:01:46]} e4 {[%clk 00:41:27]} {[%emt 00:03:25]} 27. Rdxe3 {[%clk
00:01:50]} {[%emt 00:01:01]} Rf3 {[%clk 00:39:42]} {[%emt 00:02:15]} 28. gxf3
{[%clk 00:01:24]} {[%emt 00:00:56]} Ra7 {[%clk 00:38:43]} {[%emt 00:01:30]} 29.
Qe8+ {[%clk 00:01:19]} {[%emt 00:00:33]} Kh7 {[%clk 00:38:34]} {[%emt
00:00:40]} 30. Qxc8 {[%clk 00:01:05]} {[%emt 00:00:44]} c5 {[%clk 00:38:22]}
{[%emt 00:00:42]} 31. Bxe6 {[%clk 00:00:51]} {[%emt 00:00:44]} Rg7 {[%clk
00:38:06]} {[%emt 00:00:45]} 32. Bf5+ {[%clk 00:01:05]} {[%emt 00:00:17]} Kh6
{[%clk 00:38:24]} {[%emt 00:00:13]} 33. Rxe4 {[%clk 00:01:03]} {[%emt
00:00:32]} Qxb2 {[%clk 00:37:56]} {[%emt 00:00:57]} 34. Qd8 {[%clk 00:01:00]}
{[%emt 00:00:30]} Qc3 {[%clk 00:38:00]} {[%emt 00:00:30]} 35. Rh4# {[%clk
00:00:50]} {[%emt 00:00:09]} 1-0

[Event "Ebbe Cup 48"]
[Site "Goteborgs Schackcentrum, Vegatan 20, Gothenburg, Sweden"]
[Date "2025.02.16"]
[Round "4.4"]
[White "Gallardo, Guillermo"]
[Black "Havner, Arvid"]
[Result "1/2-1/2"]
[TimeControl "90 minutes + 30 seconds per move from move one"]
[WhiteFideId "1773488"]
[BlackFideId "1769308"]
[WhiteElo "1773"]
[BlackElo "1881"]

1. c4 {[%clk 01:30:54]} {[%emt 00:00:04]} c6 {[%clk 01:30:57]} {[%emt
00:00:04]} 2. Nc3 {[%clk 01:31:05]} {[%emt 00:00:19]} d5 {[%clk 01:31:22]}
{[%emt 00:00:05]} 3. cxd5 {[%clk 01:30:46]} {[%emt 00:00:49]} cxd5 {[%clk
01:31:46]} {[%emt 00:00:06]} 4. d4 {[%clk 01:31:00]} {[%emt 00:00:17]} Nf6
{[%clk 01:32:11]} {[%emt 00:00:06]} 5. e3 {[%clk 01:30:46]} {[%emt 00:00:43]}
Nc6 {[%clk 01:32:27]} {[%emt 00:00:13]} 6. h3 {[%clk 01:28:53]} {[%emt
00:02:24]} Bf5 {[%clk 01:32:27]} {[%emt 00:00:30]} 7. Bd3 {[%clk 01:28:45]}
{[%emt 00:00:38]} Bxd3 {[%clk 01:32:07]} {[%emt 00:00:50]} 8. Qxd3 {[%clk
01:29:05]} {[%emt 00:00:10]} e6 {[%clk 01:32:25]} {[%emt 00:00:12]} 9. a3
{[%clk 01:28:17]} {[%emt 00:01:18]} Bd6 {[%clk 01:32:38]} {[%emt 00:00:17]} 10.
Nf3 {[%clk 01:27:31]} {[%emt 00:01:16]} Rc8 {[%clk 01:32:41]} {[%emt 00:00:27]}
11. O-O {[%clk 01:25:53]} {[%emt 00:02:07]} O-O {[%clk 01:33:02]} {[%emt
00:00:10]} 12. Bd2 {[%clk 01:15:28]} {[%emt 00:10:54]} Qe7 {[%clk 01:31:00]}
{[%emt 00:02:32]} 13. Rac1 {[%clk 01:10:50]} {[%emt 00:05:08]} Rfd8 {[%clk
01:29:33]} {[%emt 00:01:58]} 14. Rfd1 {[%clk 01:08:08]} {[%emt 00:03:13]} e5
{[%clk 01:29:05]} {[%emt 00:00:58]} 15. dxe5 {[%clk 01:02:11]} {[%emt
00:06:26]} Nxe5 {[%clk 01:29:25]} {[%emt 00:00:10]} 16. Qe2 {[%clk 00:51:56]}
{[%emt 00:10:45]} Nxf3+ {[%clk 01:20:31]} {[%emt 00:09:24]} 17. Qxf3 {[%clk
00:51:39]} {[%emt 00:00:46]} Qe5 {[%clk 01:20:28]} {[%emt 00:00:34]} 18. g3
{[%clk 00:49:12]} {[%emt 00:02:57]} Ne4 {[%clk 01:15:21]} {[%emt 00:05:36]} 19.
Be1 {[%clk 00:44:25]} {[%emt 00:05:16]} Bf8 {[%clk 00:52:13]} {[%emt 00:23:40]}
20. Nxe4 {[%clk 00:22:31]} {[%emt 00:22:23]} dxe4 {[%clk 00:52:31]} {[%emt
00:00:12]} 21. Qe2 {[%clk 00:22:10]} {[%emt 00:00:51]} Rxc1 {[%clk 00:48:00]}
{[%emt 00:05:02]} 22. Rxc1 {[%clk 00:22:08]} {[%emt 00:00:32]} h5 {[%clk
00:44:45]} {[%emt 00:03:45]} 23. Bc3 {[%clk 00:21:04]} {[%emt 00:01:35]} Qf5
{[%clk 00:44:40]} {[%emt 00:00:34]} 24. Kg2 {[%clk 00:13:47]} {[%emt 00:07:47]}
Qd5 {[%clk 00:42:05]} {[%emt 00:03:05]} 25. Bd4 {[%clk 00:13:26]} {[%emt
00:00:51]} a6 {[%clk 00:41:30]} {[%emt 00:01:05]} 26. Qc4 {[%clk 00:12:45]}
{[%emt 00:01:11]} f5 {[%clk 00:32:37]} {[%emt 00:09:23]} 27. Qxd5+ {[%clk
00:12:11]} {[%emt 00:01:05]} Rxd5 {[%clk 00:33:00]} {[%emt 00:00:06]} 28. Rc7
{[%clk 00:11:23]} {[%emt 00:01:18]} Rb5 {[%clk 00:33:07]} {[%emt 00:00:23]} 29.
f3 {[%clk 00:09:48]} {[%emt 00:02:04]} exf3+ {[%clk 00:33:08]} {[%emt
00:00:30]} 30. Kxf3 {[%clk 00:10:12]} {[%emt 00:00:06]} g6 {[%clk 00:30:49]}
{[%emt 00:02:49]} 31. Rd7 {[%clk 00:08:38]} {[%emt 00:02:04]} Bh6 {[%clk
00:31:01]} {[%emt 00:00:18]} 32. h4 {[%clk 00:07:42]} {[%emt 00:01:26]} Rb3
{[%clk 00:27:24]} {[%emt 00:04:07]} 33. Rd8+ {[%clk 00:05:50]} {[%emt
00:02:23]} Kf7 {[%clk 00:26:09]} 1/2-1/2